bitfinex-derivatives/quotes_ETHF0:USTF0_20250105
["timestamp","ask_amount","ask_price","bid_price","bid_amount"]
[1736108257724,0.4169,3644.2,3643.8,3.2078]
[1736108257931,0.24704,3644.0,3643.8,5.41302383]
[1736108258233,0.4169,3644.2,3643.8,5.41302383]
[1736108258930,0.24704,3643.9,3643.8,5.41302383]
[1736108259135,0.24704,3643.9,3643.8,3.2078]
[1736108259634,3.2078,3644.5,3643.8,5.41302383]
[1736108259926,4.19842,3646.4,3644.2,3.2078]
[1736108259927,0.24701,3644.4,3644.2,3.2078]
[1736108260127,0.4182,3644.4,3644.2,4.2728]
[1736108261343,0.4182,3644.4,3644.3,0.24702]
[1736108261843,0.24699,3644.8,3644.4,0.24701]
[1736108262146,0.24698,3644.9,3644.6,3.2078]
[1736108262541,0.66517,3645.1,3644.6,3.45479]
[1736108264147,0.66517,3645.1,3644.6,0.24699]
[1736108264340,0.24697,3645.0,3644.6,3.45479]
[1736108264836,0.24697,3645.0,3644.6,3.2078]
[1736108265640,0.4182,3645.1,3644.6,3.2078]
[1736108265945,0.66516,3645.1,3644.7,0.24699]
[1736108266446,0.24697,3645.0,3644.6,3.45479]
[1736108267643,0.4182,3645.1,3644.6,3.2078]
[1736108268441,0.24699,3644.8,3644.6,3.2078]
[1736108268845,0.4182,3645.1,3644.6,3.2078]
[1736108269044,0.24698,3644.9,3644.6,3.2078]
[1736108269245,0.24697,3645.0,3644.6,3.45479]
[1736108269445,0.66517,3645.1,3644.7,0.24699]
[1736108270347,0.4182,3645.1,3644.6,3.2078]
[1736108270547,0.24697,3645.0,3644.6,3.45479]
[1736108271248,0.24697,3645.0,3644.6,7.72430785]
[1736108272647,0.4182,3645.1,3644.6,7.47731785]
[1736108272849,0.4182,3645.1,3644.9,0.24697]
[1736108273651,0.4182,3645.1,3644.8,0.24698]
[1736108273848,0.4182,3645.1,3644.9,0.24698]
[1736108274150,0.4182,3645.1,3645.0,4.26951785]
[1736108274346,0.4297,3645.8,3645.0,8.55031785]
[1736108274543,0.24693,3645.6,3645.2,0.24695]
[1736108275043,0.65603,3645.7,3645.2,0.24696]
[1736108275244,0.4091,3645.7,3645.5,0.24693]
[1736108275956,0.24688,3646.3,3645.8,0.24691]
[1736108276252,0.65598,3646.3,3646.2,3.2078]
[1736108276447,0.4116,3646.9,3646.2,3.2078]
[1736108276749,0.4116,3646.9,3645.9,1.073]
[1736108276750,0.24681,3647.5,3646.8,5.41302383]
[1736108276953,0.8207,3647.5,3646.9,1.073]
[1736108277148,6.43609199,3647.9,3646.9,1.073]
[1736108277349,0.8207,3647.7,3646.9,1.073]
[1736108277549,0.2468,3647.6,3646.9,1.31984]
[1736108277854,0.8207,3647.7,3646.9,1.073]
[1736108278155,0.8207,3647.7,3647.4,3.2078]
[1736108278450,6.48168609,3648.0,3647.4,3.2078]
[1736108278655,1.07269,3647.6,3647.4,3.2078]
[1736108279056,0.8259,3647.6,3647.4,3.2078]
[1736108279547,0.8259,3647.6,3647.1,4.26951785]
[1736108279548,0.8259,3647.6,3647.1,7.47731785]
[1736108279749,0.24681,3647.5,3647.1,7.47731785]
[1736108279948,0.8259,3647.6,3647.1,7.47731785]
[1736108280149,0.8259,3647.6,3647.1,3.2078]
[1736108280348,0.4124,3647.9,3647.1,3.2078]
[1736108280349,0.24679,3647.7,3647.6,0.1741]
[1736108280751,0.24679,3647.7,3647.6,0.1698281]
[1736108281051,0.4124,3647.9,3647.6,0.1698281]
[1736108281652,3.45452,3648.7,3647.8,5.65979383]
[1736108281845,0.4044,3649.3,3648.6,3.2078]
[1736108282052,4.27646226,3649.5,3649.1,2.20522383]
[1736108282356,4.27646226,3649.5,3649.4,5.39900013]
[1736108282853,4.27646226,3649.5,3649.4,10.39900013]
[1736108283052,4.27646226,3649.5,3649.4,10.64567013]
[1736108283555,4.27646226,3649.5,3649.4,10.39900013]
[1736108283752,3.2078,3650.3,3649.4,10.39900013]
[1736108283956,3.2078,3650.3,3649.4,5.64567013]
[1736108284457,0.4223,3650.7,3650.0,3.2078]
[1736108285154,3.2078,3651.3,3650.4,5.41302383]
[1736108285457,0.0008,3652.0,3650.9,3.2078]
[1736108285758,0.0008,3652.0,3651.7,3.2078]
[1736108287858,0.24651,3651.8,3651.7,3.2078]
[1736108288154,2.45174383,3651.8,3651.3,3.2078]
[1736108288455,2.20522383,3651.4,3650.6,3.2078]
[1736108288650,3.2078,3651.7,3650.1,7.47731785]
[1736108288651,2.20522383,3650.8,3650.1,7.47731785]
[1736108288845,2.20522383,3650.5,3650.1,4.26951785]
[1736108289249,2.20522383,3650.5,3649.6,3.2078]
[1736108289746,0.24663,3650.1,3649.6,3.2078]
[1736108290052,2.20522383,3649.9,3649.5,4.26951785]
[1736108290246,2.45188383,3649.6,3649.5,4.26951785]
[1736108290757,0.24668,3649.3,3648.8,3.2078]
[1736108290956,0.24671,3648.9,3648.4,7.47731785]
[1736108291260,0.2467,3649.0,3648.4,7.47731785]
[1736108291556,0.01405102,3648.7,3648.4,7.47731785]
[1736108291757,0.24673,3648.6,3648.4,7.47731785]
[1736108291959,0.01405102,3648.7,3648.4,3.2078]
[1736108292353,0.01405102,3648.7,3648.5,0.24673]
[1736108292549,0.01405102,3648.6,3648.5,0.24673]
[1736108292750,0.01405102,3648.6,3648.5,1.36673]
[1736108292951,0.24663,3650.0,3649.2,0.24668]
[1736108293153,0.24664,3649.9,3649.3,3.2078]
[1736108294254,3.6456,3650.2,3649.3,3.2078]
[1736108294660,0.24667,3649.4,3649.3,3.2078]
[1736108294861,0.24668,3649.4,3648.9,3.2078]
[1736108295157,0.2467,3649.1,3648.9,3.2078]
[1736108295360,0.2467,3649.0,3648.9,3.2078]
[1736108295552,2.59757799,3649.6,3648.8,3.2078]
[1736108295759,0.24671,3648.9,3648.3,3.2078]
[1736108295958,0.24671,3648.8,3648.7,3.2078]
[1736108296252,0.24673,3648.7,3648.3,3.2078]
[1736108296461,0.24672,3648.7,3648.3,3.2078]
[1736108296661,0.4176,3648.8,3648.3,3.2078]
[1736108296963,0.4176,3648.8,3648.7,3.2078]
[1736108297164,0.66431,3648.8,3648.7,3.2078]
[1736108297360,0.34762504,3648.8,3648.3,3.2078]
[1736108297557,0.10091504,3648.8,3648.3,3.2078]
[1736108298066,0.34763504,3648.8,3648.3,3.2078]
[1736108298668,0.10091504,3648.8,3648.3,3.2078]
[1736108298969,0.24673,3648.7,3648.3,3.2078]
[1736108299170,0.24672,3648.7,3648.3,3.2078]
[1736108299373,0.4364,3650.6,3648.6,5.19515598]
[1736108299561,3.2078,3651.3,3650.3,2.59757799]
[1736108299966,0.02255936,3650.8,3650.7,3.2078]
[1736108300365,0.02255936,3650.8,3650.7,6.05195799]
[1736108301062,0.0008,3652.0,3650.7,11.07977799]
[1736108301259,0.0008,3652.0,3651.5,0.24653]
[1736108301475,0.0008,3652.0,3651.4,3.2078]
[1736108301765,0.0008,3652.0,3651.8,3.2078]
[1736108302964,0.2465,3651.9,3651.8,3.2078]
[1736108303268,0.2465,3651.9,3651.0,3.2078]
[1736108303269,3.2078,3651.9,3651.0,3.2078]
[1736108303465,2.59757799,3651.7,3651.0,3.2078]
[1736108303666,0.24653,3651.5,3651.0,3.2078]
[1736108303873,0.408,3651.6,3651.0,3.2078]
[1736108304167,0.408,3651.6,3651.4,3.2078]
[1736108304359,0.4135,3651.8,3651.4,3.2078]
[1736108305065,0.0008,3652.0,3651.4,3.2078]
[1736108305262,0.0008,3652.0,3651.8,3.2078]
[1736108305965,0.0008,3652.0,3651.9,0.2465]
[1736108307060,0.0008,3652.0,3651.8,3.2078]
[1736108307367,3.2078,3652.7,3651.9,0.2465]
[1736108307561,3.2078,3653.1,3652.3,3.2078]
[1736108307766,3.2078,3653.1,3652.5,0.24646]
[1736108307965,3.2078,3653.1,3652.4,2.59757799]
[1736108307966,6.74291746,3654.0,3653.0,3.2078]
[1736108308168,0.91047406,3654.1,3653.6,2.59757799]
[1736108308369,0.91047406,3654.1,3654.0,3.2078]
[1736108308769,0.91047406,3654.1,3653.6,3.2078]
[1736108309470,0.91047406,3654.1,3654.0,3.2078]
[1736108309971,0.91047406,3654.1,3654.0,9.62216]
[1736108310173,0.91047406,3654.1,3654.0,4.3758]
[1736108310372,0.91047406,3654.1,3654.0,9.62216]
[1736108311075,0.91047406,3654.1,3654.0,12.21973799]
[1736108311673,0.4119,3656.0,3654.7,0.24631]
[1736108311977,0.4119,3656.0,3654.0,11.97337799]
[1736108311978,0.24623,3656.0,3655.3,3.2078]
[1736108312172,3.2078,3656.1,3655.4,1.167]
[1736108312384,0.24623,3656.0,3655.5,1.167]
[1736108312579,3.45402,3656.1,3655.5,1.167]
[1736108312878,3.2078,3656.1,3655.5,1.167]
[1736108313571,0.24626,3655.5,3655.3,3.2078]
[1736108313767,2.59757799,3655.9,3654.8,3.2078]
[1736108313973,2.59757799,3655.1,3653.9,3.2078]
[1736108314167,2.59757799,3654.6,3653.5,3.2078]
[1736108314377,2.59757799,3654.6,3653.9,3.2078]
[1736108314576,3.2078,3654.4,3653.5,3.2078]
[1736108314873,3.614,3655.3,3654.1,3.2078]
[1736108315075,3.2078,3655.7,3654.5,3.2078]
[1736108315272,0.24627,3655.4,3655.0,3.2078]
[1736108315470,0.8853,3656.0,3655.0,3.2078]
[1736108315666,0.24628,3655.3,3655.0,3.2078]
[1736108315970,0.24628,3655.3,3654.8,1.167]
[1736108315971,3.2078,3655.7,3654.8,1.167]
[1736108316173,3.2078,3655.3,3654.1,3.2078]
[1736108316568,3.2078,3655.7,3654.9,3.2078]
[1736108316774,0.24629,3655.0,3654.9,3.2078]
[1736108316974,0.24629,3655.1,3654.9,3.2078]
[1736108317183,0.24629,3655.1,3654.7,1.167]
[1736108317472,0.24631,3654.8,3654.5,3.2078]
[1736108317775,2.59757799,3655.5,3654.5,3.2078]
[1736108317979,0.24633,3654.5,3654.1,3.2078]
[1736108318276,2.59757799,3655.1,3654.1,3.2078]
[1736108318477,2.84384799,3655.5,3654.5,3.2078]
[1736108318669,3.2078,3655.3,3654.3,0.24634]
[1736108318875,3.2078,3655.3,3654.1,3.2078]
[1736108319075,3.45408,3655.3,3654.2,0.24635]
[1736108319377,3.2078,3655.3,3654.1,3.2078]
[1736108319679,0.24629,3655.1,3654.1,3.2078]
[1736108319883,0.67209,3655.2,3654.1,3.2078]
[1736108320070,0.4258,3655.2,3654.1,3.2078]
[1736108320267,0.24631,3654.9,3654.1,3.2078]
[1736108320475,0.4258,3655.2,3654.1,3.2078]
[1736108320973,0.2463,3655.0,3654.1,3.2078]
[1736108321280,0.4258,3655.2,3654.2,0.24635]
[1736108321470,0.4258,3655.2,3654.4,0.24633]
[1736108321874,0.4258,3655.2,3654.1,3.2078]
[1736108322076,0.4258,3655.2,3654.5,0.24632]
[1736108322270,3.2078,3655.3,3654.7,0.24631]
[1736108322675,3.2078,3655.3,3654.6,3.45412]
[1736108323371,0.24628,3655.2,3654.5,0.24633]
[1736108323568,3.2078,3655.3,3654.2,3.2078]
[1736108323771,0.24633,3654.6,3654.2,3.2078]
[1736108323984,0.24633,3654.5,3653.8,3.2078]
[1736108324168,0.24634,3654.4,3653.8,3.2078]
[1736108324378,0.412,3654.5,3653.8,3.2078]
[1736108324681,0.24635,3654.3,3653.8,3.2078]
[1736108324893,0.412,3654.5,3653.8,3.2078]
[1736108325581,0.24635,3654.3,3653.8,3.2078]
[1736108326080,0.24634,3654.3,3653.8,3.2078]
[1736108326380,0.24634,3654.4,3653.8,3.2078]
[1736108326582,0.24635,3654.3,3653.8,3.2078]
[1736108327180,3.6198,3654.5,3653.8,3.2078]
[1736108327384,0.24634,3654.3,3653.8,3.2078]
[1736108327580,3.6198,3654.5,3654.2,0.24635]
[1736108327788,0.412,3654.5,3654.4,0.24634]
[1736108327978,0.412,3654.5,3654.3,0.24634]
[1736108328286,0.412,3654.5,3654.0,1.167]
[1736108328478,0.412,3654.5,3654.2,0.24634]
[1736108328883,0.412,3654.5,3653.9,0.24637]
[1736108329083,0.65833,3654.5,3653.9,1.167]
[1736108329484,0.65833,3654.5,3653.8,3.2078]
[1736108329485,0.24634,3654.3,3653.8,3.2078]
[1736108329777,3.6198,3654.5,3653.8,3.2078]
[1736108329980,0.24637,3653.9,3653.4,1.167]
[1736108330277,3.2078,3654.1,3653.3,3.2078]
[1736108330988,0.24637,3654.0,3653.4,0.2464]
[1736108331183,0.412,3654.5,3653.7,3.2078]
[1736108331385,0.24634,3654.4,3653.7,3.2078]
[1736108331586,0.65833,3654.5,3653.9,0.24636]
[1736108331781,0.412,3654.5,3654.2,0.24634]
[1736108332578,0.412,3654.5,3653.9,1.167]
[1736108332775,3.2078,3654.9,3654.1,3.2078]
[1736108332983,0.8551,3655.5,3654.6,3.2078]
[1736108333177,0.4318,3655.5,3655.1,0.24628]
[1736108333381,0.4318,3655.5,3655.1,0.24629]
[1736108333579,0.4318,3655.5,3655.0,3.2078]
[1736108333884,0.4318,3655.5,3655.1,0.24629]
[1736108334083,0.4318,3655.5,3655.0,3.2078]
[1736108334285,0.4318,3655.5,3654.7,1.167]
[1736108334286,0.4318,3655.5,3654.9,3.2078]
[1736108334478,0.24627,3655.4,3654.8,0.24631]
[1736108335080,0.67806,3655.5,3654.9,0.2463]
[1736108335381,0.4318,3655.5,3654.7,1.167]
[1736108335582,3.2078,3655.7,3655.0,3.2078]
[1736108335878,0.4233,3656.1,3655.4,3.2078]
[1736108336082,0.24623,3656.0,3655.4,3.45407]
[1736108336483,0.24623,3656.0,3655.3,3.2078]
[1736108336683,0.24624,3655.8,3655.3,3.2078]
[1736108336888,0.4233,3656.1,3655.4,0.24627]
[1736108337180,0.4233,3656.1,3655.3,3.2078]
[1736108337387,0.24624,3655.9,3655.3,3.45407]
[1736108337577,0.24623,3656.0,3655.3,3.2078]
[1736108337782,0.24623,3655.9,3655.3,3.45407]
[1736108337983,0.4233,3656.1,3655.3,3.2078]
[1736108338487,3.2078,3656.3,3655.9,0.24623]
[1736108338686,3.2078,3656.3,3655.7,4.4218]
[1736108338886,3.2078,3656.3,3656.0,0.24623]
[1736108339082,3.2078,3656.3,3655.9,0.24623]
[1736108339790,3.2078,3656.3,3655.7,7.00843497]
[1736108339982,0.24622,3656.2,3655.7,4.4218]
[1736108340178,3.2078,3656.3,3655.7,4.4218]
[1736108340585,3.2078,3656.3,3655.7,7.00843497]
[1736108340786,3.2078,3656.3,3655.9,0.24623]
[1736108341191,3.2078,3656.3,3655.7,7.00843497]
[1736108341192,3.2078,3656.3,3655.7,4.4218]
[1736108341490,0.24622,3656.2,3655.7,4.4218]
[1736108341690,3.2078,3657.1,3656.1,3.2078]
[1736108341898,3.45395,3657.1,3656.5,3.2078]
[1736108342187,3.2078,3657.1,3656.7,2.58663497]
[1736108342397,3.2078,3657.1,3656.7,2.83281497]
[1736108342689,3.2078,3657.7,3656.9,3.45396]
[1736108342993,3.2078,3657.7,3657.3,2.58663497]
[1736108343183,3.2078,3658.1,3657.3,5.79443497]
[1736108343384,3.2078,3658.1,3657.9,2.58663497]
[1736108343588,3.2078,3658.1,3657.9,3.80063497]
[1736108343992,0.24606,3658.5,3657.9,5.79443497]
[1736108344187,3.2078,3658.2,3657.0,3.2078]
[1736108344385,3.2078,3657.8,3653.5,2.739]
[1736108344585,0.24636,3654.1,3653.5,3.2078]
[1736108344890,0.24636,3654.1,3652.7,15.35845859]
[1736108345089,3.2078,3654.1,3652.8,3.26255251]
[1736108345392,3.2078,3654.5,3653.2,3.2078]
[1736108345588,3.2078,3654.5,3653.7,0.24638]
[1736108346290,3.2078,3654.5,3653.7,3.2078]
[1736108346487,3.2078,3655.4,3654.2,3.45414]
[1736108346687,3.2078,3655.4,3654.3,0.48584]
[1736108347193,3.2078,3655.0,3654.3,0.48584]
[1736108347591,3.2078,3655.0,3654.4,0.05472854]
[1736108347785,3.2078,3654.6,3654.4,0.05472854]
[1736108347989,0.24633,3654.5,3654.4,0.05472854]
[1736108348187,0.24637,3654.0,3653.3,0.4272]
[1736108348493,3.2078,3653.4,3653.3,0.4272]
[1736108348988,3.2078,3653.4,3652.5,1.36]
[1736108349189,0.24643,3653.1,3652.5,1.36]
[1736108349393,3.2078,3652.8,3652.5,1.36]
[1736108349596,3.2078,3653.2,3652.6,0.24645]
[1736108349797,3.2078,3653.2,3652.5,1.36]
[1736108349998,3.2078,3653.2,3652.7,0.24645]
[1736108350300,4.25712797,3652.9,3652.5,1.36]
[1736108350488,4.25712797,3652.9,3652.7,0.24644]
[1736108350688,4.25712797,3652.9,3652.5,1.36]
[1736108350993,4.25712797,3652.9,3652.5,1.60646]
[1736108351290,0.41080339,3652.8,3652.5,1.60646]
[1736108351495,0.41080339,3652.8,3652.5,1.36]
[1736108351996,3.2078,3653.2,3652.7,0.24645]
[1736108351997,4.25712797,3653.0,3652.7,0.24645]
[1736108352395,4.25712797,3653.0,3652.5,0.24646]
[1736108352596,4.25712797,3652.8,3652.6,1.36]
[1736108352992,4.25712797,3652.8,3652.6,1.60645]
[1736108353194,4.25712797,3652.8,3652.6,1.36]
[1736108353691,4.25712797,3652.9,3652.6,4.5678]
[1736108354196,4.25712797,3652.9,3652.6,9.81425]
[1736108354590,4.25712797,3652.9,3652.0,3.2078]
[1736108354788,1.23127,3655.7,3650.6,0.61647]
[1736108354789,6.41413996,3652.7,3652.1,1.36]
[1736108355093,3.2078,3652.3,3652.0,1.36]
[1736108355293,3.20633996,3652.2,3651.5,0.24653]
[1736108355500,3.20633996,3652.2,3651.4,3.2078]
[1736108355501,0.24653,3651.5,3650.6,3.4822]
[1736108355705,3.2078,3651.1,3650.5,1.36]
[1736108356198,3.2078,3651.5,3651.0,3.2078]
[1736108356497,3.2078,3652.0,3651.4,3.2078]
[1736108356697,3.2078,3652.0,3651.5,1.36]
[1736108356898,4.25712797,3651.6,3651.5,1.36]
[1736108357291,4.25712797,3651.6,3651.4,3.2078]
[1736108357491,4.25712797,3651.6,3651.5,1.36]
[1736108358299,3.2078,3652.0,3651.5,1.36]
[1736108358496,3.2078,3651.6,3651.5,1.36]
[1736108358901,0.00209005,3651.6,3651.5,1.36]
[1736108359102,0.00209005,3651.6,3650.6,4.0857]
[1736108359103,3.45642005,3651.6,3650.9,0.24657]
[1736108359299,3.45642005,3651.6,3651.0,1.36]
[1736108359497,3.20989005,3651.6,3651.1,0.24656]
[1736108359898,3.45642005,3651.6,3651.1,0.24656]
[1736108360099,0.24653,3651.5,3651.0,1.36]
[1736108360499,3.20989005,3651.6,3651.1,0.24656]
[1736108360701,0.24653,3651.5,3651.0,1.60656]
[1736108361003,0.24654,3651.4,3650.9,0.24657]
[1736108361203,0.24654,3651.4,3651.1,1.36]
[1736108361898,0.24656,3651.1,3650.2,3.2078]
[1736108362104,0.24653,3651.5,3650.9,0.24657]
[1736108362305,0.24653,3651.5,3651.0,1.60656]
[1736108362306,3.2078,3651.2,3651.0,1.60656]
[1736108362802,0.24653,3651.5,3651.0,0.24656]
[1736108363004,0.24653,3651.5,3651.1,1.361]
[1736108363697,3.20989005,3651.6,3651.1,1.361]
[1736108363997,3.20989005,3651.6,3651.5,0.24653]
[1736108364202,2.13478708,3652.0,3651.4,3.2078]
[1736108364406,3.2078,3653.3,3651.8,6.21531068]
[1736108364596,3.45421,3653.3,3652.7,0.24644]
[1736108364797,3.00751068,3653.0,3652.2,1.361]
[1736108365106,0.24647,3652.4,3652.2,1.361]
[1736108365501,0.24648,3652.3,3652.2,1.361]
[1736108366005,0.24649,3652.1,3652.0,1.361]
[1736108367401,3.2078,3652.3,3650.9,3.2078]
[1736108367402,3.2078,3652.3,3651.5,1.361]
[1736108367606,3.45432,3651.7,3651.2,0.24655]
[1736108367999,3.2078,3651.7,3651.2,0.24655]
[1736108368200,0.24653,3651.6,3651.2,0.24655]
[1736108368406,3.2078,3651.7,3651.3,1.361]
[1736108368714,0.24654,3651.4,3651.3,1.361]
[1736108369310,3.2078,3651.7,3651.2,1.361]
[1736108369311,0.24654,3651.3,3651.2,1.361]
[1736108369612,0.66035,3651.3,3650.9,0.24657]
[1736108369907,0.66034,3651.3,3651.0,1.60756]
[1736108370507,0.66034,3651.3,3651.0,1.361]
[1736108371407,0.4138,3651.3,3651.1,0.24655]
[1736108371612,0.4138,3651.3,3651.2,1.361]
[1736108372807,0.4138,3651.3,3650.4,3.2078]
[1736108373007,3.2078,3650.9,3650.5,1.361]
[1736108373610,3.2078,3650.9,3650.6,0.24659]
[1736108374011,3.45437,3650.9,3650.5,1.60759]
[1736108374207,3.45437,3650.9,3650.5,1.6076]
[1736108374406,3.6216,3651.3,3650.5,1.361]
[1736108374617,0.4164,3651.6,3650.9,3.2078]
[1736108374916,0.4076,3652.0,3651.3,3.2078]
[1736108374917,3.6154,3652.0,3651.3,3.2078]
[1736108375108,0.2465,3651.9,3651.4,1.336]
[1736108375415,0.4076,3652.0,3651.4,1.336]
[1736108375614,0.24651,3651.9,3651.5,0.24653]
[1736108375907,0.24652,3651.8,3651.4,1.336]
[1736108376115,0.24651,3651.9,3651.4,1.58253]
[1736108376315,0.4076,3652.0,3651.4,1.58254]
[1736108376518,0.24651,3651.9,3651.4,1.58254]
[1736108376704,0.4076,3652.0,3651.4,1.336]
[1736108376910,0.24652,3651.7,3651.4,1.336]
[1736108377111,2.59350143,3651.9,3651.4,1.336]
[1736108377314,2.84003143,3651.5,3651.4,1e-08]
[1736108377709,2.59350143,3651.5,3650.9,1.336]
[1736108377905,0.4325,3651.4,3650.9,1.336]
[1736108378113,0.24655,3651.3,3650.9,1.336]
[1736108378314,3.2078,3652.6,3651.0,3.2078]
[1736108378511,0.24649,3652.1,3651.6,0.24652]
[1736108378711,0.2465,3652.0,3651.5,3.45433]
[1736108379014,0.24651,3651.9,3651.5,3.2078]
[1736108379315,0.24653,3651.6,3651.3,3.2078]
[1736108379511,0.24652,3651.7,3651.3,3.2078]
[1736108379712,3.04090143,3652.2,3651.3,3.2078]
[1736108379911,0.24652,3651.7,3651.3,3.2078]
[1736108381021,0.24653,3651.6,3651.3,3.2078]
[1736108381418,0.24652,3651.7,3651.3,3.2078]
[1736108381618,2.59350143,3652.2,3651.3,3.2078]
[1736108381821,0.24651,3651.9,3651.3,3.2078]
[1736108382020,0.24651,3651.8,3651.4,0.24653]
[1736108382217,2.59350143,3652.2,3651.4,0.24653]
[1736108382419,2.59350143,3652.2,3651.3,3.2078]
[1736108382719,2.59350143,3652.2,3651.4,0.24654]
[1736108382922,0.24651,3651.8,3651.4,0.24654]
[1736108383123,2.59350143,3652.2,3651.4,0.24654]
[1736108383319,2.59350143,3652.2,3651.0,0.4144]
[1736108383320,0.4278,3652.3,3651.7,3.2078]
[1736108383622,3.2078,3652.6,3652.3,0.24648]
[1736108383824,0.852,3652.8,3652.2,3.2078]
[1736108384022,0.24646,3652.5,3652.2,3.2078]
[1736108384427,0.24647,3652.4,3652.2,3.2078]
[1736108384720,0.24647,3652.5,3652.2,3.2078]
[1736108384922,2.59350143,3653.0,3652.2,3.2078]
[1736108385124,0.24645,3652.8,3652.6,3.2078]
[1736108385924,0.24645,3652.8,3652.4,0.24647]
[1736108387319,0.24644,3652.8,3652.3,0.24647]
[1736108387622,0.24644,3652.8,3652.4,0.24647]
[1736108388022,0.24644,3652.8,3652.3,0.24648]
[1736108388622,0.24644,3652.8,3652.4,0.24647]
[1736108389026,2.59350143,3653.4,3652.3,0.24647]
[1736108389319,0.24645,3652.7,3652.3,0.24647]
[1736108389528,2.59350143,3653.4,3652.3,0.24647]
[1736108389529,0.24645,3652.8,3652.3,0.24647]
[1736108390521,2.59350143,3652.6,3652.2,3.2078]
[1736108390721,0.24649,3652.1,3651.8,1.336]
[1736108391125,1.27474523,3652.5,3651.8,1.336]
[1736108391426,1.27474523,3652.5,3651.5,3.2078]
[1736108391427,0.2465,3651.9,3651.5,3.2078]
[1736108391627,0.2465,3652.0,3651.9,1.336]
[1736108391818,0.2465,3651.9,3651.5,3.45433]
[1736108392022,0.2465,3652.0,3651.6,1.58252]
[1736108392423,5.73534648,3652.5,3651.6,1.336]
[1736108392826,0.65751362,3651.9,3651.5,3.45433]
[1736108393128,0.41100362,3651.9,3651.6,1.336]
[1736108393426,0.24652,3651.7,3651.6,1.336]
[1736108394427,0.41100362,3651.7,3651.5,4.5438]
[1736108394627,0.41100362,3651.7,3651.6,2.59350143]
[1736108394827,0.66807,3652.5,3652.1,0.24648]
[1736108395027,0.24648,3652.3,3652.2,3.2078]
[1736108395332,0.24648,3652.3,3652.1,3.2078]
[1736108395520,4.53683325,3652.2,3652.1,3.2078]
[1736108395721,4.53684325,3652.2,3651.8,1.5825]
[1736108396031,4.53684325,3652.2,3651.9,0.2465]
[1736108396231,4.29035325,3652.2,3652.1,3.45429]
[1736108396924,4.29035325,3652.2,3652.1,4.79029]
[1736108397230,4.29035325,3652.4,3652.3,0.24648]
[1736108397733,3.57402472,3652.4,3652.3,2.83998143]
[1736108397928,1.55052472,3652.4,3652.3,7.83998143]
[1736108398225,7.44997395,3653.7,3652.3,7.83998143]
[1736108398226,5.42186623,3653.0,3652.3,2.83998143]
[1736108398426,5.42186623,3653.0,3652.9,3.2078]
[1736108398634,5.42186623,3653.0,3652.9,3.45424]
[1736108399624,3.2078,3654.0,3652.9,3.2078]
[1736108399827,3.2078,3654.0,3653.4,3.2078]
[1736108400025,0.2464,3653.5,3653.4,3.2078]
[1736108401024,7.59350143,3653.5,3653.0,3.2078]
[1736108401226,0.24641,3653.4,3653.0,3.2078]
[1736108401426,0.24641,3653.3,3653.0,3.2078]
[1736108401625,2.59350143,3653.9,3653.0,3.2078]
[1736108401925,0.24641,3653.3,3653.0,3.2078]
[1736108402121,2.59350143,3653.9,3653.0,3.2078]
[1736108402327,0.24643,3653.0,3652.9,1.336]
[1736108402530,2.59350143,3653.5,3652.6,1.336]
[1736108402732,0.24645,3652.8,3652.6,1.336]
[1736108402930,2.59350143,3653.1,3652.4,3.2078]
[1736108403127,0.8592,3653.0,3652.2,1.336]
[1736108403333,0.24648,3652.4,3652.0,3.2078]
[1736108403637,0.8592,3653.0,3651.9,3.2078]
[1736108403638,3.2078,3652.7,3651.9,3.2078]
[1736108403832,5.80130143,3652.7,3651.9,4.5438]
[1736108404037,0.2465,3652.0,3651.9,1.336]
[1736108404329,0.4365,3652.6,3651.5,3.2078]
[1736108404531,0.4365,3652.6,3651.7,1.302]
[1736108404729,0.24649,3652.2,3651.9,3.2078]
[1736108404932,0.24647,3652.5,3651.9,3.4543]
[1736108405326,0.4365,3652.6,3651.9,3.2078]
[1736108405531,0.24649,3652.1,3651.9,3.2078]
[1736108405726,0.4365,3652.6,3651.9,3.2078]
[1736108405927,0.24647,3652.4,3651.9,3.2078]
[1736108406132,0.4365,3652.6,3651.9,3.2078]
[1736108406334,0.2465,3652.0,3651.9,3.2078]
[1736108406725,0.4365,3652.6,3651.9,3.2078]
[1736108406932,0.24646,3652.5,3651.9,3.2078]
[1736108407130,0.4365,3652.6,3651.9,3.2078]
[1736108407439,5.26457306,3652.5,3651.9,3.2078]
[1736108407640,0.24647,3652.4,3651.9,3.2078]
[1736108407939,0.24648,3652.3,3651.9,3.2078]
[1736108408136,0.4365,3652.6,3651.9,3.2078]
[1736108408843,0.4365,3652.6,3652.2,0.24648]
[1736108409242,0.4365,3652.6,3651.9,3.2078]
[1736108409534,0.24646,3652.5,3652.1,0.24648]
[1736108409739,0.4365,3652.6,3651.9,3.2078]
[1736108409940,0.4365,3652.6,3652.3,0.24647]
[1736108410543,0.4365,3652.6,3652.2,0.24648]
[1736108411042,0.4365,3652.6,3651.9,3.2078]
[1736108411238,0.24649,3652.2,3652.0,1.302]
[1736108411441,0.24646,3652.5,3652.0,1.302]
[1736108411744,0.4365,3652.6,3652.0,1.302]
[1736108411943,0.24647,3652.4,3652.0,1.5485]
[1736108412137,0.24647,3652.4,3652.0,1.302]
[1736108412343,0.24648,3652.3,3651.9,4.13591183]
[1736108412545,0.4365,3652.6,3651.9,4.13591183]
[1736108412838,0.24647,3652.4,3651.9,4.13591183]